[Event "Early-Titled-Tuesday-Blitz-March-26-2024"]
[Site "Chess.com"]
[Date "2024.03.26"]
[Round "9"]
[White "ljuks68"]
[Black "Yuruultei"]
[Result "0-1"]
[WhiteElo "2422"]
[BlackElo "2282"]
[TimeControl "180+1"]
[EndTime "9:42:55 PDT"]
[Termination "Yuruultei won on time"]

1. e4 {[%clk 0:03:00.9]} 1... c5 {[%clk 0:02:44.8]} 2. Nf3 {[%clk 0:03:00.1]}
2... e6 {[%clk 0:02:45.3]} 3. d4 {[%clk 0:03:00.4]} 3... cxd4 {[%clk 0:02:46.2]}
4. Nxd4 {[%clk 0:03:00.9]} 4... Nc6 {[%clk 0:02:47.1]} 5. Nc3 {[%clk 0:03:01.3]}
5... a6 {[%clk 0:02:47.4]} 6. Nxc6 {[%clk 0:02:58.9]} 6... bxc6 {[%clk
0:02:48.3]} 7. Bd3 {[%clk 0:02:59.3]} 7... d5 {[%clk 0:02:47.9]} 8. e5 {[%clk
0:02:59.5]} 8... Ne7 {[%clk 0:02:41.1]} 9. Qg4 {[%clk 0:02:52.5]} 9... Ng6
{[%clk 0:02:40.3]} 10. Qg3 {[%clk 0:02:52.7]} 10... Be7 {[%clk 0:02:40.1]} 11.
O-O {[%clk 0:02:31.2]} 11... O-O {[%clk 0:02:38.9]} 12. Re1 {[%clk 0:02:28.9]}
12... c5 {[%clk 0:02:35.2]} 13. b3 {[%clk 0:02:27.7]} 13... Qa5 {[%clk 0:02:29]}
14. Bd2 {[%clk 0:02:25.5]} 14... Qc7 {[%clk 0:02:29.2]} 15. Bg5 {[%clk
0:02:14.9]} 15... Bb7 {[%clk 0:02:24.5]} 16. h4 {[%clk 0:02:07.4]} 16... c4
{[%clk 0:02:05.8]} 17. bxc4 {[%clk 0:01:54.7]} 17... dxc4 {[%clk 0:02:06.7]} 18.
Be4 {[%clk 0:01:55]} 18... Bxe4 {[%clk 0:02:06.2]} 19. Nxe4 {[%clk 0:01:55.1]}
19... Bxg5 {[%clk 0:02:04.2]} 20. Nxg5 {[%clk 0:01:48.8]} 20... h6 {[%clk
0:01:59.6]} 21. Nxe6 {[%clk 0:01:30.7]} 21... fxe6 {[%clk 0:01:51.1]} 22. Qxg6
{[%clk 0:01:29.8]} 22... Qb6 {[%clk 0:01:23.3]} 23. Qg3 {[%clk 0:00:51.5]} 23...
Rf7 {[%clk 0:01:15.7]} 24. Rab1 {[%clk 0:00:47.4]} 24... Qc5 {[%clk 0:01:12.2]}
25. Qe3 {[%clk 0:00:44.8]} 25... Qe7 {[%clk 0:00:54.1]} 26. Rb6 {[%clk
0:00:44.5]} 26... Raf8 {[%clk 0:00:53.3]} 27. f3 {[%clk 0:00:41.3]} 27... Qxh4
{[%clk 0:00:52.4]} 28. Rf1 {[%clk 0:00:20.3]} 28... Qg3 {[%clk 0:00:50.6]} 29.
Rxe6 {[%clk 0:00:17.2]} 29... Rf5 {[%clk 0:00:50.1]} 30. Qf2 {[%clk 0:00:08.5]}
30... Qg5 {[%clk 0:00:47.3]} 31. Qe2 {[%clk 0:00:03.1]} 31... h5 {[%clk
0:00:46.8]} 32. Rd6 {[%clk 0:00:02.5]} 32... h4 {[%clk 0:00:46.7]} 33. Rd4
{[%clk 0:00:02]} 33... Rxe5 {[%clk 0:00:39.1]} 34. Qxc4+ {[%clk 0:00:01.7]}
34... Rf7 {[%clk 0:00:33.7]} 35. Rg4 {[%clk 0:00:01.5]} 35... Qe3+ {[%clk
0:00:30.9]} 36. Kh2 {[%clk 0:00:01.4]} 36... h3 {[%clk 0:00:30.7]} 0-1

[Event "Early-Titled-Tuesday-Blitz-March-26-2024"]
[Site "Chess.com"]
[Date "2024.03.26"]
[Round "9"]
[White "KNVB"]
[Black "sorch29"]
[Result "1-0"]
[WhiteElo "2760"]
[BlackElo "2475"]
[TimeControl "180+1"]
[EndTime "9:42:56 PDT"]
[Termination "KNVB won on time"]

1. d4 {[%clk 0:02:48.1]} 1... d5 {[%clk 0:02:55.1]} 2. Bf4 {[%clk 0:02:45.1]}
2... Nf6 {[%clk 0:02:54.7]} 3. e3 {[%clk 0:02:44.5]} 3... c5 {[%clk 0:02:54.9]}
4. c3 {[%clk 0:02:44.4]} 4... Nc6 {[%clk 0:02:52.7]} 5. Nd2 {[%clk 0:02:42.1]}
5... e6 {[%clk 0:02:32.6]} 6. Ngf3 {[%clk 0:02:41.8]} 6... Bd6 {[%clk
0:02:32.5]} 7. Bg3 {[%clk 0:02:39]} 7... O-O {[%clk 0:02:26.8]} 8. Bd3 {[%clk
0:02:30.3]} 8... b6 {[%clk 0:02:06.8]} 9. e4 {[%clk 0:02:29.6]} 9... dxe4 {[%clk
0:02:03.2]} 10. Nxe4 {[%clk 0:02:28.7]} 10... Nxe4 {[%clk 0:02:00.6]} 11. Bxe4
{[%clk 0:02:29.6]} 11... Bb7 {[%clk 0:02:00.9]} 12. dxc5 {[%clk 0:02:29.3]}
12... Bxc5 {[%clk 0:01:56.3]} 13. Qa4 {[%clk 0:02:29.1]} 13... Qc8 {[%clk
0:01:43.9]} 14. Bxh7+ {[%clk 0:02:09.2]} 14... Kxh7 {[%clk 0:01:28.8]} 15. Qh4+
{[%clk 0:02:10.1]} 15... Kg8 {[%clk 0:01:06]} 16. Ng5 {[%clk 0:02:10.3]} 16...
Re8 {[%clk 0:00:50.1]} 17. Qh7+ {[%clk 0:01:38.6]} 17... Kf8 {[%clk 0:00:50]}
18. Qh8+ {[%clk 0:00:43.6]} 18... Ke7 {[%clk 0:00:49.5]} 19. Qxg7 {[%clk
0:00:44.5]} 19... Rf8 {[%clk 0:00:42.8]} 20. Nh7 {[%clk 0:00:20.1]} 20... e5
{[%clk 0:00:06.6]} 21. O-O-O {[%clk 0:00:05]} 21... Qe6 {[%clk 0:00:05.6]} 22.
Bh4+ {[%clk 0:00:05.2]} 22... Ke8 {[%clk 0:00:05]} 23. Nf6+ {[%clk 0:00:04.5]}
23... Ke7 {[%clk 0:00:02.2]} 24. Nd5+ {[%clk 0:00:02.8]} 24... Kd6 {[%clk
0:00:01.7]} 25. Nf4+ {[%clk 0:00:01.8]} 25... Nd4 {[%clk 0:00:01.5]} 26. Nxe6
{[%clk 0:00:02]} 26... fxe6 {[%clk 0:00:01.4]} 27. Be7+ {[%clk 0:00:02.3]} 1-0

[Event "Early-Titled-Tuesday-Blitz-March-26-2024"]
[Site "Chess.com"]
[Date "2024.03.26"]
[Round "9"]
[White "Payyappat"]
[Black "Zampronha1971"]
[Result "0-1"]
[WhiteElo "2512"]
[BlackElo "2371"]
[TimeControl "180+1"]
[EndTime "9:42:59 PDT"]
[Termination "Zampronha1971 won on time"]

1. e4 {[%clk 0:03:00.9]} 1... c5 {[%clk 0:02:57.2]} 2. Nf3 {[%clk 0:03:00.8]}
2... e6 {[%clk 0:02:57.2]} 3. d4 {[%clk 0:03:01]} 3... cxd4 {[%clk 0:02:58.1]}
4. Nxd4 {[%clk 0:03:01.9]} 4... Nc6 {[%clk 0:02:58.4]} 5. Nc3 {[%clk 0:03:02.6]}
5... Qc7 {[%clk 0:02:58.7]} 6. Be3 {[%clk 0:03:02.8]} 6... a6 {[%clk 0:02:59]}
7. Be2 {[%clk 0:03:03.2]} 7... Nf6 {[%clk 0:02:56.4]} 8. O-O {[%clk 0:03:01.5]}
8... Bb4 {[%clk 0:02:56.2]} 9. Na4 {[%clk 0:02:49.2]} 9... Be7 {[%clk
0:02:54.8]} 10. Nxc6 {[%clk 0:02:48.8]} 10... bxc6 {[%clk 0:02:54.4]} 11. Bb6
{[%clk 0:02:29.7]} 11... Qe5 {[%clk 0:02:36.4]} 12. Bd4 {[%clk 0:02:18]} 12...
Qc7 {[%clk 0:02:25.6]} 13. Nb6 {[%clk 0:02:06]} 13... Rb8 {[%clk 0:02:23.8]} 14.
Nxc8 {[%clk 0:02:05.2]} 14... Qxc8 {[%clk 0:02:23.9]} 15. e5 {[%clk 0:01:57.9]}
15... Nd5 {[%clk 0:02:23.4]} 16. c4 {[%clk 0:01:57.8]} 16... Nb6 {[%clk
0:02:13.6]} 17. b3 {[%clk 0:01:49.2]} 17... c5 {[%clk 0:02:12]} 18. Bc3 {[%clk
0:01:47.6]} 18... O-O {[%clk 0:02:11.7]} 19. f4 {[%clk 0:01:46.3]} 19... Qc7
{[%clk 0:02:04.1]} 20. Bd3 {[%clk 0:01:38]} 20... d5 {[%clk 0:02:03.6]} 21. Rf3
{[%clk 0:01:34.4]} 21... g6 {[%clk 0:01:57.1]} 22. Rh3 {[%clk 0:01:26.4]} 22...
dxc4 {[%clk 0:01:49.6]} 23. bxc4 {[%clk 0:01:23.8]} 23... Rbd8 {[%clk
0:01:47.1]} 24. Qc2 {[%clk 0:01:13.3]} 24... Qc6 {[%clk 0:01:43.8]} 25. Be4
{[%clk 0:00:58]} 25... Qa4 {[%clk 0:01:43.1]} 26. Qf2 {[%clk 0:00:15.9]} 26...
Qxc4 {[%clk 0:01:30.1]} 27. Re1 {[%clk 0:00:15.6]} 27... Nd5 {[%clk 0:01:16.7]}
28. Ba1 {[%clk 0:00:14.6]} 28... f5 {[%clk 0:00:44.5]} 29. exf6 {[%clk
0:00:10.4]} 29... Bxf6 {[%clk 0:00:45.1]} 30. Bd3 {[%clk 0:00:06.9]} 30... Qb4
{[%clk 0:00:18.2]} 31. Rb1 {[%clk 0:00:06.9]} 31... Qa4 {[%clk 0:00:13]} 32.
Bxf6 {[%clk 0:00:04]} 32... Rxf6 {[%clk 0:00:12.9]} 0-1

[Event "Early-Titled-Tuesday-Blitz-March-26-2024"]
[Site "Chess.com"]
[Date "2024.03.26"]
[Round "9"]
[White "1mbl4"]
[Black "CSB7"]
[Result "1-0"]
[WhiteElo "2599"]
[BlackElo "2766"]
[TimeControl "180+1"]
[EndTime "9:43:00 PDT"]
[Termination "1mbl4 won by resignation"]

1. e4 {[%clk 0:02:53]} 1... e6 {[%clk 0:02:59.9]} 2. d4 {[%clk 0:02:47.1]} 2...
d5 {[%clk 0:03:00.4]} 3. e5 {[%clk 0:02:42.9]} 3... c5 {[%clk 0:02:56.4]} 4. c3
{[%clk 0:02:43]} 4... Nc6 {[%clk 0:02:56.7]} 5. Nf3 {[%clk 0:02:42.6]} 5... Qb6
{[%clk 0:02:57.2]} 6. a3 {[%clk 0:02:42.3]} 6... Nh6 {[%clk 0:02:51.1]} 7. b4
{[%clk 0:02:37.1]} 7... cxd4 {[%clk 0:02:47.7]} 8. cxd4 {[%clk 0:02:36.4]} 8...
Bd7 {[%clk 0:02:37.2]} 9. Nc3 {[%clk 0:02:24]} 9... Rc8 {[%clk 0:02:34.2]} 10.
Na4 {[%clk 0:02:16.9]} 10... Qd8 {[%clk 0:02:31.7]} 11. Bd3 {[%clk 0:02:15.3]}
11... Nf5 {[%clk 0:02:27.1]} 12. Bb2 {[%clk 0:02:14.2]} 12... h5 {[%clk
0:02:13.1]} 13. Nc5 {[%clk 0:02:03.9]} 13... b6 {[%clk 0:01:36.5]} 14. Nxd7
{[%clk 0:02:00.6]} 14... Qxd7 {[%clk 0:01:37.4]} 15. Bb5 {[%clk 0:01:54.9]}
15... g6 {[%clk 0:01:32.5]} 16. O-O {[%clk 0:01:37.8]} 16... Bh6 {[%clk
0:01:18.4]} 17. Bc1 {[%clk 0:01:36.6]} 17... Bxc1 {[%clk 0:00:59.8]} 18. Rxc1
{[%clk 0:01:37.5]} 18... O-O {[%clk 0:00:55.6]} 19. Qa4 {[%clk 0:01:35]} 19...
Nfe7 {[%clk 0:00:55.4]} 20. Rc3 {[%clk 0:01:24.2]} 20... Rc7 {[%clk 0:00:50.5]}
21. Rfc1 {[%clk 0:01:23.3]} 21... Rfc8 {[%clk 0:00:51]} 22. Ba6 {[%clk
0:01:19.7]} 22... b5 {[%clk 0:00:20.7]} 23. Bxc8 {[%clk 0:01:15.5]} 23... Qxc8
{[%clk 0:00:17.1]} 24. Qxb5 {[%clk 0:01:13.1]} 24... Kg7 {[%clk 0:00:17.2]} 25.
Qd3 {[%clk 0:01:09.5]} 25... a6 {[%clk 0:00:14.2]} 26. a4 {[%clk 0:01:06.2]}
26... Qb8 {[%clk 0:00:13.3]} 27. b5 {[%clk 0:01:01.7]} 27... axb5 {[%clk
0:00:10.3]} 28. Qxb5 {[%clk 0:01:00.4]} 28... Rb7 {[%clk 0:00:10]} 29. Qc5
{[%clk 0:00:56]} 29... Nb4 {[%clk 0:00:10]} 30. Rb3 {[%clk 0:00:36.1]} 30... Na2
{[%clk 0:00:05.9]} 31. Rxb7 {[%clk 0:00:35]} 31... Qxb7 {[%clk 0:00:06.8]} 32.
Re1 {[%clk 0:00:34.4]} 32... Nc6 {[%clk 0:00:06.8]} 33. a5 {[%clk 0:00:33.3]}
33... Nab4 {[%clk 0:00:04.5]} 34. Qb6 {[%clk 0:00:33.2]} 34... Qa8 {[%clk
0:00:04.5]} 35. Ra1 {[%clk 0:00:32.1]} 35... Na6 {[%clk 0:00:03.9]} 36. Ng5
{[%clk 0:00:31.2]} 36... Qe8 {[%clk 0:00:02.6]} 37. Qxa6 {[%clk 0:00:30]} 37...
Nb4 {[%clk 0:00:03.3]} 38. Qb7 {[%clk 0:00:29.5]} 38... Nc2 {[%clk 0:00:03.9]}
39. Rc1 {[%clk 0:00:27.3]} 1-0

[Event "Early-Titled-Tuesday-Blitz-March-26-2024"]
[Site "Chess.com"]
[Date "2024.03.26"]
[Round "9"]
[White "NelsonLinda"]
[Black "Lucky_Puncher"]
[Result "0-1"]
[WhiteElo "2639"]
[BlackElo "2493"]
[TimeControl "180+1"]
[EndTime "9:43:00 PDT"]
[Termination "Lucky_Puncher won by checkmate"]

1. b3 {[%clk 0:03:00.9]} 1... Nf6 {[%clk 0:02:58.9]} 2. Bb2 {[%clk 0:03:01]}
2... g6 {[%clk 0:02:59.3]} 3. Bxf6 {[%clk 0:03:00.2]} 3... exf6 {[%clk
0:02:59.6]} 4. c4 {[%clk 0:03:01.1]} 4... Bg7 {[%clk 0:02:59.9]} 5. Nc3 {[%clk
0:03:01.7]} 5... O-O {[%clk 0:03:00.7]} 6. e3 {[%clk 0:03:01]} 6... f5 {[%clk
0:02:59.9]} 7. Rc1 {[%clk 0:03:00]} 7... b6 {[%clk 0:02:57.3]} 8. Be2 {[%clk
0:02:58.1]} 8... Bb7 {[%clk 0:02:57.3]} 9. Bf3 {[%clk 0:02:58.1]} 9... Nc6
{[%clk 0:02:56.8]} 10. Nge2 {[%clk 0:02:57.4]} 10... Re8 {[%clk 0:02:56.3]} 11.
d4 {[%clk 0:02:56.9]} 11... d6 {[%clk 0:02:53.7]} 12. O-O {[%clk 0:02:57]} 12...
Qd7 {[%clk 0:02:52.8]} 13. Qd2 {[%clk 0:02:50.5]} 13... Rab8 {[%clk 0:02:52.2]}
14. g3 {[%clk 0:02:48.4]} 14... h5 {[%clk 0:02:51.5]} 15. Bg2 {[%clk 0:02:45.3]}
15... h4 {[%clk 0:02:51.3]} 16. Nd5 {[%clk 0:02:40.3]} 16... hxg3 {[%clk
0:02:50.1]} 17. hxg3 {[%clk 0:02:41.2]} 17... Ne7 {[%clk 0:02:42.2]} 18. Nef4
{[%clk 0:02:35.6]} 18... Nxd5 {[%clk 0:02:30.6]} 19. Nxd5 {[%clk 0:02:36.5]}
19... Bxd5 {[%clk 0:02:17.1]} 20. cxd5 {[%clk 0:02:33.9]} 20... Re7 {[%clk
0:02:10]} 21. Rc6 {[%clk 0:02:33.2]} 21... f4 {[%clk 0:02:06.4]} 22. exf4 {[%clk
0:02:28.3]} 22... Rbe8 {[%clk 0:01:53.9]} 23. Bf3 {[%clk 0:02:24.9]} 23... Bf6
{[%clk 0:01:23.7]} 24. Rfc1 {[%clk 0:02:17.4]} 24... Kg7 {[%clk 0:01:23.6]} 25.
Qc3 {[%clk 0:02:11.1]} 25... Rh8 {[%clk 0:01:20.5]} 26. Rxc7 {[%clk 0:02:00.2]}
26... Qh3 {[%clk 0:01:20.2]} 27. Rxe7 {[%clk 0:01:59.9]} 27... Bxe7 {[%clk
0:01:15]} 28. Bg2 {[%clk 0:01:46.9]} 28... Qh2+ {[%clk 0:01:14.9]} 29. Kf1
{[%clk 0:01:47.4]} 29... Bf6 {[%clk 0:01:14.7]} 30. Qd3 {[%clk 0:01:45.1]} 30...
Re8 {[%clk 0:01:00.7]} 31. Rc7 {[%clk 0:01:36.9]} 31... Qh5 {[%clk 0:00:51.3]}
32. Be4 {[%clk 0:01:27.5]} 32... Qh3+ {[%clk 0:00:50.1]} 33. Kg1 {[%clk
0:01:17.7]} 33... Rh8 {[%clk 0:00:50]} 34. b4 {[%clk 0:00:47.3]} 34... Qh2+
{[%clk 0:00:37.8]} 35. Kf1 {[%clk 0:00:47.1]} 35... Qh3+ {[%clk 0:00:38.1]} 36.
Bg2 {[%clk 0:00:43]} 36... Qh5 {[%clk 0:00:38.3]} 37. a4 {[%clk 0:00:32]} 37...
Re8 {[%clk 0:00:38.5]} 38. Rc1 {[%clk 0:00:28.6]} 38... Re7 {[%clk 0:00:32.8]}
39. Rc6 {[%clk 0:00:25.8]} 39... Re8 {[%clk 0:00:26.6]} 40. Rxd6 {[%clk
0:00:18.4]} 40... Be7 {[%clk 0:00:27]} 41. Rc6 {[%clk 0:00:18.3]} 41... Bxb4
{[%clk 0:00:27.4]} 42. d6 {[%clk 0:00:16.1]} 42... Re1# {[%clk 0:00:27.9]} 0-1

[Event "Early-Titled-Tuesday-Blitz-March-26-2024"]
[Site "Chess.com"]
[Date "2024.03.26"]
[Round "9"]
[White "teresin05"]
[Black "pfalcon1949"]
[Result "0-1"]
[WhiteElo "2261"]
[BlackElo "2071"]
[TimeControl "180+1"]
[EndTime "9:43:04 PDT"]
[Termination "pfalcon1949 won by checkmate"]

1. e4 {[%clk 0:03:00.9]} 1... e6 {[%clk 0:02:58.9]} 2. d4 {[%clk 0:02:53.2]}
2... d5 {[%clk 0:02:58.4]} 3. Nc3 {[%clk 0:02:53.8]} 3... Bb4 {[%clk 0:02:57.9]}
4. e5 {[%clk 0:02:52.1]} 4... Ne7 {[%clk 0:02:56.2]} 5. Qg4 {[%clk 0:02:51]}
5... Kf8 {[%clk 0:02:54.7]} 6. Bd2 {[%clk 0:02:48.9]} 6... b6 {[%clk 0:02:52.7]}
7. Nf3 {[%clk 0:02:48]} 7... Ba6 {[%clk 0:02:49.8]} 8. O-O-O {[%clk 0:02:46.2]}
8... Bxf1 {[%clk 0:02:48.1]} 9. Rhxf1 {[%clk 0:02:45.6]} 9... Qd7 {[%clk
0:02:35.3]} 10. Kb1 {[%clk 0:02:44.2]} 10... a5 {[%clk 0:02:30.4]} 11. Ng5
{[%clk 0:02:33.1]} 11... a4 {[%clk 0:02:21.1]} 12. a3 {[%clk 0:02:31.1]} 12...
Bxc3 {[%clk 0:02:19.8]} 13. Bxc3 {[%clk 0:02:32]} 13... Nbc6 {[%clk 0:02:09]}
14. Qf3 {[%clk 0:02:28.2]} 14... Nd8 {[%clk 0:02:04.7]} 15. g4 {[%clk 0:02:26]}
15... h6 {[%clk 0:02:03.6]} 16. Nh3 {[%clk 0:02:22.6]} 16... b5 {[%clk
0:01:55.4]} 17. g5 {[%clk 0:02:19.8]} 17... hxg5 {[%clk 0:01:47.6]} 18. Nxg5
{[%clk 0:02:20.7]} 18... Nf5 {[%clk 0:01:29.4]} 19. Bb4+ {[%clk 0:01:58.9]}
19... Ke8 {[%clk 0:01:24.6]} 20. Qg4 {[%clk 0:01:57.5]} 20... Nc6 {[%clk
0:01:22.3]} 21. Bc5 {[%clk 0:01:56]} 21... b4 {[%clk 0:01:20.2]} 22. axb4 {[%clk
0:01:54.8]} 22... a3 {[%clk 0:01:20]} 23. b3 {[%clk 0:01:46.2]} 23... a2+ {[%clk
0:01:04.9]} 24. Ka1 {[%clk 0:01:45.4]} 24... Kd8 {[%clk 0:00:45.4]} 25. h4
{[%clk 0:01:25.4]} 25... Kc8 {[%clk 0:00:45.4]} 26. h5 {[%clk 0:01:22.8]} 26...
Kb7 {[%clk 0:00:44.5]} 27. Qe2 {[%clk 0:01:20.6]} 27... Na7 {[%clk 0:00:30.9]}
28. Kb2 {[%clk 0:01:14.5]} 28... Qb5 {[%clk 0:00:29.6]} 29. Qf3 {[%clk
0:00:52.2]} 29... Nc6 {[%clk 0:00:20.9]} 30. Ra1 {[%clk 0:00:51]} 30... Nxb4
{[%clk 0:00:19.2]} 31. Bxb4 {[%clk 0:00:49.4]} 31... Qxb4 {[%clk 0:00:19]} 32.
Qc3 {[%clk 0:00:46.1]} 32... Qxd4 {[%clk 0:00:14.8]} 33. Qxd4 {[%clk 0:00:45]}
33... Nxd4 {[%clk 0:00:15.7]} 34. f4 {[%clk 0:00:42.5]} 34... Rxh5 {[%clk
0:00:12.3]} 35. Nxf7 {[%clk 0:00:42.7]} 35... Rh2 {[%clk 0:00:11.6]} 36. Rfc1
{[%clk 0:00:41]} 36... Ne2 {[%clk 0:00:09.9]} 37. Re1 {[%clk 0:00:38.4]} 37...
Nxf4 {[%clk 0:00:09.3]} 38. Re3 {[%clk 0:00:32.1]} 38... d4 {[%clk 0:00:02.6]}
39. Re4 {[%clk 0:00:20.5]} 39... d3 {[%clk 0:00:02.9]} 40. Rxf4 {[%clk
0:00:20.1]} 40... Rxc2# {[%clk 0:00:01.9]} 0-1

[Event "Early-Titled-Tuesday-Blitz-March-26-2024"]
[Site "Chess.com"]
[Date "2024.03.26"]
[Round "9"]
[White "Kostukov_Alex"]
[Black "DinaBelenkaya"]
[Result "0-1"]
[WhiteElo "2289"]
[BlackElo "2468"]
[TimeControl "180+1"]
[EndTime "9:43:08 PDT"]
[Termination "DinaBelenkaya won on time"]

1. g3 {[%clk 0:03:00.9]} 1... d5 {[%clk 0:02:59.9]} 2. Bg2 {[%clk 0:03:01.1]}
2... c6 {[%clk 0:02:54]} 3. d3 {[%clk 0:03:01.1]} 3... Nf6 {[%clk 0:02:54]} 4.
e4 {[%clk 0:03:01.4]} 4... dxe4 {[%clk 0:02:53.3]} 5. dxe4 {[%clk 0:03:02.3]}
5... Qxd1+ {[%clk 0:02:52.9]} 6. Kxd1 {[%clk 0:03:03.2]} 6... g6 {[%clk
0:02:52.2]} 7. f3 {[%clk 0:03:03.1]} 7... Bg7 {[%clk 0:02:52.2]} 8. c3 {[%clk
0:03:03.6]} 8... O-O {[%clk 0:02:52.1]} 9. Be3 {[%clk 0:03:03.9]} 9... Rd8+
{[%clk 0:02:52.1]} 10. Nd2 {[%clk 0:03:04.1]} 10... Nbd7 {[%clk 0:02:51.7]} 11.
Kc2 {[%clk 0:02:56.1]} 11... b6 {[%clk 0:02:48.1]} 12. Nh3 {[%clk 0:02:54.4]}
12... Ba6 {[%clk 0:02:47.6]} 13. Nf2 {[%clk 0:02:54.4]} 13... Ne5 {[%clk
0:02:44.9]} 14. Bf1 {[%clk 0:02:51.5]} 14... Bxf1 {[%clk 0:02:36.8]} 15. Rhxf1
{[%clk 0:02:52.4]} 15... Rd7 {[%clk 0:02:35.6]} 16. h3 {[%clk 0:02:29.2]} 16...
Rad8 {[%clk 0:02:30.4]} 17. Bd4 {[%clk 0:01:24.5]} 17... c5 {[%clk 0:02:20.5]}
18. Be3 {[%clk 0:01:18.2]} 18... Nd3 {[%clk 0:02:02.8]} 19. Rad1 {[%clk
0:00:40.6]} 19... Nxf2 {[%clk 0:01:36]} 20. Bxf2 {[%clk 0:00:31.4]} 20... Bh6
{[%clk 0:01:26.5]} 21. Nc4 {[%clk 0:00:27.5]} 21... b5 {[%clk 0:01:09.6]} 22.
Ne3 {[%clk 0:00:17.9]} 22... Nh5 {[%clk 0:01:04.2]} 23. Rxd7 {[%clk 0:00:12.4]}
23... Rxd7 {[%clk 0:01:04.2]} 24. f4 {[%clk 0:00:11.3]} 24... e6 {[%clk
0:00:38.4]} 25. Ng4 {[%clk 0:00:09.1]} 25... Bf8 {[%clk 0:00:33.2]} 26. e5
{[%clk 0:00:08.9]} 26... c4 {[%clk 0:00:31.3]} 27. Rd1 {[%clk 0:00:07.8]} 27...
Rxd1 {[%clk 0:00:30.6]} 28. Kxd1 {[%clk 0:00:08.7]} 28... a6 {[%clk 0:00:28.9]}
29. Ke2 {[%clk 0:00:08.3]} 29... Be7 {[%clk 0:00:27.9]} 30. Kf3 {[%clk
0:00:08.4]} 30... Kf8 {[%clk 0:00:28.3]} 31. Ke4 {[%clk 0:00:08.5]} 31... Ke8
{[%clk 0:00:28.7]} 32. a4 {[%clk 0:00:08]} 32... Kd7 {[%clk 0:00:28.4]} 33. axb5
{[%clk 0:00:07.6]} 33... axb5 {[%clk 0:00:29.3]} 34. Nh6 {[%clk 0:00:06.3]}
34... f5+ {[%clk 0:00:27.3]} 35. exf6 {[%clk 0:00:05.5]} 35... Nxf6+ {[%clk
0:00:27.5]} 36. Kf3 {[%clk 0:00:03.8]} 36... Kc6 {[%clk 0:00:17.1]} 37. Nf7
{[%clk 0:00:03.5]} 37... Nd7 {[%clk 0:00:14.1]} 38. Bd4 {[%clk 0:00:01.2]} 38...
Kd5 {[%clk 0:00:13.5]} 0-1

[Event "Early-Titled-Tuesday-Blitz-March-26-2024"]
[Site "Chess.com"]
[Date "2024.03.26"]
[Round "9"]
[White "Resignify"]
[Black "Midgardsormur"]
[Result "0-1"]
[WhiteElo "2276"]
[BlackElo "2455"]
[TimeControl "180+1"]
[EndTime "9:43:09 PDT"]
[Termination "Midgardsormur won on time"]

1. e4 {[%clk 0:03:00.9]} 1... c5 {[%clk 0:02:59.9]} 2. Nc3 {[%clk 0:03:00.6]}
2... Nc6 {[%clk 0:02:58.7]} 3. g3 {[%clk 0:03:01.2]} 3... g6 {[%clk 0:02:58.4]}
4. Bg2 {[%clk 0:03:01.7]} 4... Bg7 {[%clk 0:02:58.7]} 5. d3 {[%clk 0:03:02.2]}
5... e6 {[%clk 0:02:58.4]} 6. Be3 {[%clk 0:03:02.2]} 6... d6 {[%clk 0:02:57.1]}
7. f4 {[%clk 0:03:02]} 7... Rb8 {[%clk 0:02:55.8]} 8. a3 {[%clk 0:03:00.2]} 8...
Nge7 {[%clk 0:02:54.5]} 9. Nf3 {[%clk 0:03:00.1]} 9... Nd4 {[%clk 0:02:53.7]}
10. O-O {[%clk 0:02:58.8]} 10... O-O {[%clk 0:02:49.6]} 11. Rb1 {[%clk 0:02:58]}
11... b5 {[%clk 0:02:48.4]} 12. Ne2 {[%clk 0:02:51.2]} 12... Nxf3+ {[%clk
0:02:43.7]} 13. Bxf3 {[%clk 0:02:51.6]} 13... a5 {[%clk 0:02:13.3]} 14. h4
{[%clk 0:02:46.4]} 14... b4 {[%clk 0:02:07.8]} 15. axb4 {[%clk 0:02:44.9]} 15...
axb4 {[%clk 0:02:08.7]} 16. h5 {[%clk 0:02:45.1]} 16... Bb7 {[%clk 0:02:06]} 17.
Kg2 {[%clk 0:02:29.3]} 17... Qc7 {[%clk 0:01:59.1]} 18. Rh1 {[%clk 0:02:28]}
18... Rfd8 {[%clk 0:01:56.5]} 19. Qg1 {[%clk 0:02:22.9]} 19... d5 {[%clk
0:01:45.8]} 20. Qh2 {[%clk 0:02:15.4]} 20... dxe4 {[%clk 0:01:39.2]} 21. dxe4
{[%clk 0:02:15.5]} 21... f5 {[%clk 0:01:37.4]} 22. hxg6 {[%clk 0:01:16.7]} 22...
hxg6 {[%clk 0:01:36.5]} 23. e5 {[%clk 0:01:05.9]} 23... Bxf3+ {[%clk 0:01:21.3]}
24. Kxf3 {[%clk 0:01:05.7]} 24... Kf7 {[%clk 0:01:04]} 25. Kf2 {[%clk
0:00:34.2]} 25... Nd5 {[%clk 0:01:03.1]} 26. c4 {[%clk 0:00:21.3]} 26... Nxe3
{[%clk 0:00:59.1]} 27. Kxe3 {[%clk 0:00:20.5]} 27... Qc6 {[%clk 0:00:59.7]} 28.
Rbc1 {[%clk 0:00:06.4]} 28... Qe4+ {[%clk 0:00:59.2]} 29. Kf2 {[%clk 0:00:07]}
29... Rd2 {[%clk 0:00:56.4]} 30. Rhe1 {[%clk 0:00:07.2]} 30... Rh8 {[%clk
0:00:49.3]} 31. Qg2 {[%clk 0:00:04.2]} 31... Qd4+ {[%clk 0:00:12.3]} 32. Kf1
{[%clk 0:00:04.3]} 32... Qd3 {[%clk 0:00:12.8]} 33. Qb7+ {[%clk 0:00:02.9]}
33... Kg8 {[%clk 0:00:12.9]} 34. Qa8+ {[%clk 0:00:02.2]} 34... Kh7 {[%clk
0:00:11.9]} 35. Qh1+ {[%clk 0:00:02.1]} 35... Bh6 {[%clk 0:00:12.3]} 0-1